bitfinex/quotes_SOLUSD_20230102
["timestamp","ask_amount","ask_price","bid_price","bid_amount"]
[1672654167504,67.65,11.104,11.094,20.0]
[1672654169087,67.64,11.106,11.094,20.0]
[1672654169488,30.0,11.105,11.094,20.0]
[1672654169816,67.65,11.104,11.094,20.0]
[1672654170025,65.15,11.104,11.094,20.0]
[1672654171058,30.0,11.103,11.093,20.0]
[1672654171268,67.66,11.102,11.09,22.6825]
[1672654171486,30.0,11.1,11.09,22.6825]
[1672654171706,67.68,11.099,11.09,22.6825]
[1672654172132,67.67,11.1,11.09,22.6825]
[1672654172537,30.0,11.099,11.09,22.6825]
[1672654172738,67.68,11.098,11.09,22.6825]
[1672654174023,67.68,11.099,11.09,22.6825]
[1672654174648,67.67,11.1,11.09,22.6825]
[1672654174966,67.67,11.1,11.09,31.9125]
[1672654175177,67.65,11.104,11.09,31.9125]
[1672654175376,67.65,11.104,11.091,32.97]
[1672654175590,67.65,11.104,11.092,30.0]
[1672654175794,67.64,11.106,11.092,30.0]
[1672654176007,67.64,11.106,11.094,30.0]
[1672654176424,67.64,11.106,11.095,20.0]
[1672654176647,30.0,11.105,11.095,20.0]
[1672654176843,67.63,11.107,11.095,20.0]
[1672654177056,67.62,11.109,11.095,20.0]
[1672654177377,30.0,11.108,11.096,30.0]
[1672654177692,67.6,11.112,11.1,9.23]
[1672654177915,190.42314488,11.113,11.1,9.23]
[1672654178111,67.6,11.112,11.1,9.23]
[1672654178329,67.59,11.114,11.096,52.72]
[1672654178647,128.49103822,11.113,11.096,52.72]
[1672654178836,67.6,11.112,11.096,22.72]
[1672654179049,67.6,11.112,11.095,92.2111]
[1672654179050,9.18,11.11,11.095,92.2111]
[1672654179268,67.62,11.109,11.095,92.2111]
[1672654179495,30.0,11.108,11.096,30.0]
[1672654179700,67.63,11.107,11.095,92.2111]
[1672654180217,30.0,11.106,11.095,92.2111]
[1672654180435,67.64,11.105,11.095,92.2111]
[1672654180838,30.0,11.104,11.095,92.2111]
[1672654181051,67.65,11.103,11.095,92.2111]
[1672654181908,67.64,11.105,11.095,92.2111]
[1672654182102,67.63,11.107,11.095,92.2111]
[1672654182314,67.63,11.107,11.096,30.0]
[1672654182939,67.62,11.109,11.096,30.0]
[1672654183146,30.0,11.108,11.096,30.0]
[1672654183356,67.62,11.109,11.096,30.0]
[1672654183793,67.61,11.11,11.096,30.0]
[1672654183985,67.61,11.11,11.095,213.6167]
[1672654184197,67.61,11.11,11.095,209.3887]
[1672654184408,30.0,11.109,11.096,30.0]
[1672654184629,30.0,11.109,11.096,33.836]
[1672654185789,30.0,11.109,11.096,30.0]
[1672654185980,30.0,11.109,11.095,209.3887]
[1672654186190,67.62,11.108,11.095,209.3887]
[1672654186411,30.0,11.107,11.095,209.3887]
[1672654186849,67.62,11.108,11.096,30.0]
[1672654187285,67.61,11.11,11.096,30.0]
[1672654188413,30.0,11.109,11.096,30.0]
[1672654188831,30.0,11.109,11.096,34.092]
[1672654189484,30.0,11.109,11.096,30.0]
[1672654189998,30.0,11.107,11.096,30.0]
[1672654190622,67.61,11.11,11.096,30.0]
[1672654190831,67.61,11.11,11.096,33.815]
[1672654191038,30.0,11.109,11.096,33.815]
[1672654191481,30.0,11.109,11.095,215.4267]
[1672654191678,67.62,11.108,11.095,209.3887]
[1672654191883,30.0,11.107,11.095,209.3887]
[1672654192519,87.64,11.106,11.09,9.24]
[1672654192731,89.82455229,11.106,11.09,9.24]
[1672654192960,30.0,11.105,11.09,9.24]
[1672654193142,87.65,11.104,11.09,9.24]
[1672654193351,30.0,11.103,11.09,9.24]
[1672654193566,87.66,11.102,11.09,9.24]
[1672654193793,67.64,11.106,11.09,9.24]
[1672654194031,42.64,11.106,11.091,27.15]
[1672654194327,67.63,11.107,11.092,30.0]
[1672654194535,67.63,11.107,11.093,50.81]
[1672654194744,30.0,11.106,11.093,20.0]
[1672654195477,67.64,11.105,11.093,20.0]
[1672654195890,67.64,11.105,11.09,9.24]
[1672654196107,30.0,11.104,11.09,9.24]
[1672654196424,67.65,11.103,11.09,9.24]
[1672654197261,20.0,11.102,11.09,9.24]
[1672654197470,67.67,11.101,11.09,9.24]
[1672654197681,20.0,11.1,11.09,9.24]
[1672654197881,67.65,11.103,11.09,9.24]
[1672654198091,67.64,11.105,11.092,30.0]
[1672654198301,67.64,11.105,11.093,20.0]
[1672654198512,67.64,11.105,11.094,30.0]
[1672654198724,67.64,11.105,11.095,20.0]
[1672654199785,30.0,11.105,11.095,20.0]
[1672654199978,87.65,11.104,11.089,30.0]
[1672654200526,67.65,11.104,11.09,291.44]
[1672654200833,67.63,11.106,11.092,30.0]
[1672654201024,67.63,11.106,11.093,20.0]
[1672654201234,67.63,11.106,11.094,30.0]
[1672654201443,67.63,11.107,11.095,20.0]
[1672654201662,114.874,11.108,11.095,20.0]
[1672654201663,114.874,11.108,11.096,30.0]
[1672654201859,9.32,11.11,11.096,30.0]
[1672654201860,67.63,11.107,11.096,30.0]
[1672654202075,30.0,11.108,11.096,30.0]
[1672654202306,67.63,11.107,11.096,30.0]
[1672654202498,30.0,11.106,11.096,30.0]
[1672654202711,67.64,11.105,11.096,30.0]
[1672654203134,67.64,11.105,11.095,134.3743]
[1672654203350,67.64,11.105,11.095,114.3743]
[1672654203541,67.62,11.109,11.095,114.3743]
[1672654204191,30.0,11.107,11.088,24.4002]
[1672654204405,87.63,11.106,11.088,24.4002]
[1672654204726,2.18455229,11.105,11.088,24.4002]
[1672654204911,67.65,11.104,11.088,24.4002]
[1672654205127,50.0,11.103,11.089,30.0]
[1672654205337,67.66,11.102,11.089,30.0]
[1672654205553,20.0,11.101,11.089,30.0]
[1672654205863,67.67,11.1,11.089,30.0]
[1672654206279,20.0,11.101,11.089,30.0]
[1672654207143,30.0,11.102,11.089,30.0]
[1672654207451,20.0,11.101,11.089,66.096401]
[1672654207860,20.0,11.101,11.089,36.096401]
[1672654208069,30.0,11.099,11.089,36.096401]
[1672654208818,67.67,11.1,11.089,36.096401]
[1672654209033,30.0,11.099,11.089,36.096401]
[1672654209228,67.68,11.098,11.089,36.096401]
[1672654209443,30.0,11.099,11.089,36.096401]
[1672654209660,30.0,11.097,11.089,36.096401]
[1672654210065,67.7,11.096,11.089,36.096401]
[1672654210271,30.0,11.097,11.089,36.096401]
[1672654210479,67.68,11.098,11.089,36.096401]
[1672654211113,30.0,11.097,11.089,36.096401]
[1672654211323,67.7,11.096,11.089,36.096401]
[1672654211749,30.0,11.095,11.089,36.096401]
[1672654211973,67.7,11.096,11.089,36.096401]
[1672654212178,30.0,11.097,11.089,36.096401]
[1672654212716,67.7,11.096,11.089,36.096401]
[1672654212929,30.0,11.095,11.089,36.096401]
[1672654213245,30.0,11.093,11.089,36.096401]
[1672654213455,67.72,11.092,11.089,36.096401]
[1672654213769,87.72,11.092,11.089,36.096401]
[1672654214399,87.72,11.092,11.078,30.0]
[1672654214596,30.0,11.091,11.078,30.0]
[1672654214927,20.0,11.09,11.078,30.0]
[1672654216498,87.73,11.09,11.078,30.0]
[1672654216907,30.0,11.089,11.078,30.0]
[1672654218165,30.0,11.089,11.077,192.20722]
[1672654218375,67.74,11.088,11.077,192.20722]
[1672654218589,30.0,11.087,11.078,30.0]
[1672654218800,67.76,11.086,11.077,192.20722]
[1672654219105,67.76,11.086,11.078,30.0]
[1672654219325,67.74,11.089,11.078,30.0]
[1672654219526,30.0,11.088,11.078,30.0]
[1672654219755,87.73,11.09,11.078,30.0]
[1672654219956,30.0,11.089,11.078,30.0]
[1672654221015,30.0,11.089,11.077,192.20722]
[1672654221227,30.0,11.087,11.078,30.0]
[1672654222293,30.0,11.087,11.077,192.20722]
[1672654222590,30.0,11.085,11.077,192.20722]
[1672654222811,30.0,11.083,11.077,36.13112]
[1672654223016,20.0,11.082,11.077,36.13112]
[1672654225023,20.0,11.082,11.07,30.0]
[1672654226479,20.0,11.083,11.07,30.0]
[1672654226697,30.0,11.082,11.07,30.0]
[1672654226908,97.78,11.082,11.07,30.0]
[1672654227222,20.0,11.081,11.07,30.0]
[1672654227430,50.0,11.083,11.07,30.0]
[1672654227651,20.0,11.083,11.07,30.0]
[1672654227864,67.76,11.085,11.07,39.2]
[1672654228081,67.74,11.088,11.071,176.2957]
[1672654228394,30.0,11.087,11.072,30.0]
[1672654228603,67.76,11.086,11.073,20.0]
[1672654228821,30.0,11.085,11.074,30.0]
[1672654229125,20.0,11.084,11.069,30.0]
[1672654229327,67.77,11.083,11.069,30.0]
[1672654229530,50.0,11.082,11.069,30.0]
[1672654229742,20.0,11.082,11.069,30.0]
[1672654229959,20.0,11.083,11.069,30.0]
[1672654230176,67.78,11.082,11.069,30.0]
[1672654230397,30.0,11.087,11.07,9.24]
[1672654230585,67.74,11.088,11.07,9.24]
[1672654230920,30.0,11.087,11.07,9.24]
[1672654231857,30.0,11.087,11.072,30.0]
[1672654232076,67.76,11.086,11.073,181.5696]
[1672654232274,30.0,11.085,11.074,30.0]
[1672654232475,30.0,11.085,11.075,20.0]
[1672654233320,67.76,11.086,11.075,20.0]
[1672654233533,67.74,11.088,11.075,20.0]
[1672654233859,30.0,11.087,11.077,30.0]
[1672654234175,30.0,11.087,11.076,166.637]
[1672654234590,30.0,11.085,11.076,166.637]
[1672654236060,67.77,11.084,11.076,166.637]
[1672654236384,30.0,11.085,11.076,166.637]
[1672654238175,30.0,11.085,11.071,30.0]
[1672654238485,87.77,11.084,11.071,30.0]
[1672654238680,30.0,11.083,11.071,30.0]
[1672654238884,20.0,11.082,11.071,30.0]
[1672654239126,87.77,11.084,11.071,30.0]
[1672654240793,67.76,11.085,11.071,30.0]
[1672654241009,67.74,11.089,11.073,30.0]
[1672654241234,67.74,11.089,11.075,30.0]
[1672654241861,30.0,11.088,11.076,118.2357]
[1672654242176,67.74,11.089,11.077,30.0]
[1672654242389,67.74,11.089,11.077,195.6767]
[1672654242914,30.0,11.088,11.077,195.6767]
[1672654243230,67.74,11.089,11.077,195.6767]
[1672654243643,30.0,11.088,11.077,195.6767]
[1672654244255,67.74,11.089,11.077,195.6767]
[1672654244478,30.0,11.089,11.077,195.6767]
[1672654245853,30.0,11.089,11.077,165.6767]
[1672654246169,67.74,11.088,11.07,46.1]
[1672654246362,30.0,11.087,11.072,30.0]
[1672654246566,67.76,11.086,11.073,20.0]
[1672654246784,30.0,11.085,11.073,20.0]
[1672654246994,30.0,11.085,11.074,30.0]
[1672654247216,30.0,11.085,11.075,20.0]
[1672654249417,30.0,11.083,11.075,20.0]
[1672654249631,20.0,11.082,11.069,30.0]
[1672654249833,20.0,11.082,11.07,30.0]
[1672654250055,87.78,11.082,11.07,30.0]
[1672654250260,67.76,11.086,11.07,39.24]
[1672654250457,67.74,11.088,11.073,30.0]
[1672654250879,30.0,11.085,11.073,30.0]
[1672654251094,30.0,11.085,11.069,30.0]
[1672654251403,30.0,11.083,11.069,30.0]
[1672654251632,20.0,11.082,11.069,30.0]
[1672654252044,30.0,11.081,11.069,183.538557]
[1672654252260,20.0,11.08,11.069,183.538557]
[1672654252573,20.0,11.08,11.069,228.87412466]
[1672654252981,20.0,11.081,11.069,228.87412466]
[1672654254359,20.0,11.081,11.07,45.33556766]
[1672654254575,20.0,11.081,11.071,30.0]
[1672654254988,50.0,11.081,11.069,228.87412466]
[1672654255406,20.0,11.081,11.069,228.87412466]
[1672654256370,20.0,11.081,11.07,45.33556766]
[1672654256559,20.0,11.081,11.071,30.0]
[1672654256979,20.0,11.082,11.071,30.0]
[1672654257192,50.0,11.083,11.071,30.0]
[1672654257509,30.0,11.081,11.071,30.0]
[1672654257719,20.0,11.08,11.07,75.33556766]
[1672654257945,29.18,11.08,11.069,153.538557]
[1672654258140,96.97,11.08,11.069,153.538557]
[1672654258559,96.97,11.08,11.07,30.0]
[1672654258889,20.0,11.08,11.07,30.0]
[1672654259197,20.0,11.081,11.07,30.0]
[1672654259409,67.77,11.084,11.072,158.46299177]
[1672654259625,30.0,11.085,11.073,0.34277638]
[1672654259818,20.0,11.084,11.072,0.34274542]
[1672654260146,87.77,11.084,11.072,0.34274542]
[1672654260358,30.0,11.083,11.07,53.3749]
[1672654260558,20.0,11.082,11.07,53.3749]
[1672654260762,87.78,11.082,11.07,53.3749]
[1672654260968,20.0,11.082,11.07,53.3749]
[1672654261820,30.0,11.081,11.07,53.3749]
[1672654262048,20.0,11.08,11.07,53.3749]
[1672654262771,20.0,11.081,11.07,53.3749]
[1672654263189,50.0,11.083,11.07,53.3749]
[1672654263613,20.0,11.083,11.07,53.3749]
[1672654263821,50.0,11.083,11.07,53.3749]
[1672654264044,67.78,11.082,11.07,53.3749]
[1672654264364,20.0,11.081,11.07,53.3749]
[1672654264563,30.0,11.082,11.07,53.3749]
[1672654264776,20.0,11.081,11.07,53.3749]
[1672654264985,20.0,11.081,11.07,23.3749]
[1672654265199,30.0,11.08,11.07,23.3749]
[1672654265628,67.8,11.079,11.07,23.3749]
[1672654265821,67.79,11.08,11.07,23.3749]
[1672654266359,67.79,11.08,11.071,30.0]
[1672654267315,87.79,11.081,11.071,30.0]
[1672654267838,30.0,11.08,11.071,30.0]
[1672654268033,30.0,11.08,11.07,23.3749]
[1672654268243,67.8,11.079,11.07,23.3749]
[1672654268569,67.8,11.079,11.065,36.171336]
[1672654268570,30.0,11.077,11.065,36.171336]
[1672654268783,67.82,11.076,11.065,36.171336]
[1672654268998,20.0,11.075,11.065,36.171336]
[1672654269214,67.83,11.074,11.065,36.171336]
[1672654269517,50.0,11.073,11.065,36.171336]
[1672654269735,67.84,11.072,11.065,36.171336]
[1672654270047,30.0,11.07,11.065,36.171336]
[1672654270231,67.86,11.069,11.065,36.171336]
[1672654270447,30.0,11.068,11.065,36.171336]
[1672654270656,87.87,11.067,11.049,156.16351052]
[1672654270883,30.0,11.066,11.058,0.34324139]
[1672654271090,87.89,11.065,11.052,30.0]
[1672654271291,30.0,11.064,11.053,158.09583544]
[1672654271505,30.0,11.064,11.054,94.93663589]
[1672654271506,30.0,11.062,11.054,94.93663589]
[1672654271710,87.91,11.061,11.055,0.34333455]
[1672654272047,87.91,11.061,11.055,0.34330349]
[1672654272867,11.42,11.06,11.054,94.59327028]
[1672654273082,67.92,11.059,11.054,94.59327028]
[1672654274361,87.91,11.061,11.054,94.59327028]
[1672654274676,87.91,11.061,11.052,30.0]
[1672654274892,20.0,11.061,11.052,30.0]
[1672654275102,20.0,11.062,11.052,30.0]
[1672654275721,97.87,11.068,11.054,30.0]
[1672654276552,97.87,11.068,11.056,30.0]
[1672654277515,97.87,11.068,11.056,195.8811]
[1672654278349,97.87,11.068,11.057,365.05890927]
[1672654278777,97.87,11.068,11.056,165.8811]
[1672654278988,22.18455229,11.067,11.046,54.5334]
[1672654279185,67.88,11.066,11.05,30.0]
[1672654279500,50.0,11.065,11.05,30.0]
[1672654279829,30.0,11.063,11.05,30.0]
[1672654280039,87.9,11.062,11.049,166.6731]
[1672654280564,30.0,11.061,11.05,30.0]
[1672654280758,30.0,11.061,11.049,166.6731]
[1672654281181,67.92,11.06,11.049,166.6731]
[1672654281399,30.0,11.059,11.049,166.6731]
[1672654281815,20.0,11.062,11.05,30.0]
[1672654282987,67.89,11.065,11.051,20.0]
[1672654283198,67.87,11.067,11.052,30.0]
[1672654283386,67.87,11.067,11.053,20.0]
[1672654283816,30.0,11.066,11.053,20.0]
[1672654284015,67.89,11.065,11.054,160.802]
[1672654284226,30.0,11.064,11.054,160.802]
[1672654285292,30.0,11.062,11.048,23.9048]
[1672654285500,20.0,11.061,11.05,9.24]
[1672654285919,20.0,11.061,11.051,30.0]
[1672654286243,20.0,11.063,11.051,30.0]
[1672654286767,20.0,11.064,11.051,30.0]
[1672654287076,20.0,11.064,11.05,39.24]
[1672654287077,67.89,11.065,11.05,39.24]
[1672654287270,30.0,11.064,11.052,30.0]
[1672654287479,67.9,11.063,11.052,30.0]
[1672654288126,30.0,11.066,11.052,30.0]
[1672654288127,67.89,11.065,11.052,30.0]
[1672654288534,67.87,11.067,11.053,20.0]
[1672654288748,67.86,11.069,11.054,30.0]
[1672654289177,30.0,11.068,11.052,30.0]
[1672654289391,87.87,11.067,11.052,30.0]
[1672654290031,30.0,11.066,11.052,30.0]
[1672654290234,30.0,11.064,11.052,30.0]
[1672654290441,87.9,11.063,11.052,30.0]
[1672654290655,30.0,11.062,11.052,30.0]
[1672654290860,87.91,11.061,11.052,30.0]
[1672654291394,20.0,11.061,11.052,30.0]
[1672654291593,20.0,11.062,11.052,30.0]
[1672654291801,20.0,11.064,11.052,30.0]
[1672654292549,20.0,11.064,11.052,75.33556766]
[1672654292739,67.87,11.068,11.054,30.0]
[1672654292950,185.6698,11.072,11.055,165.1633]
[1672654293160,30.0,11.071,11.056,30.0]
[1672654293391,77.03,11.07,11.052,30.0]
[1672654293791,30.0,11.069,11.052,30.0]
[1672654293999,67.87,11.068,11.052,30.0]
[1672654294225,30.0,11.067,11.052,30.0]
[1672654294430,67.88,11.066,11.052,30.0]
[1672654294650,87.88,11.066,11.052,30.0]
[1672654295260,30.0,11.065,11.052,30.0]
[1672654295471,87.89,11.064,11.052,30.0]
[1672654295675,20.0,11.064,11.052,30.0]
[1672654296103,20.0,11.067,11.052,30.0]
[1672654296314,67.88,11.066,11.052,30.0]
[1672654296635,20.0,11.065,11.052,30.0]
[1672654296953,67.89,11.064,11.052,30.0]
[1672654297168,50.0,11.063,11.052,30.0]
[1672654297378,67.9,11.062,11.052,30.0]
[1672654297579,20.0,11.061,11.052,30.0]
[1672654298228,20.0,11.063,11.052,30.0]
[1672654298438,67.9,11.062,11.052,30.0]
[1672654298650,2.39503253,11.067,11.053,65.33556766]
[1672654298843,67.88,11.066,11.056,30.0]
[1672654299056,67.86,11.069,11.058,30.0]
[1672654299586,30.0,11.068,11.053,45.33556766]
[1672654299800,67.87,11.067,11.051,30.0]
[1672654300127,30.0,11.066,11.051,30.0]
[1672654300333,30.0,11.064,11.051,30.0]
[1672654300543,87.9,11.063,11.051,30.0]
[1672654300733,30.0,11.062,11.051,30.0]
[1672654300947,87.91,11.061,11.051,30.0]
[1672654302533,20.0,11.061,11.051,30.0]
[1672654302730,67.92,11.06,11.051,30.0]
[1672654302937,67.91,11.061,11.051,30.0]
[1672654304416,20.0,11.062,11.051,30.0]
[1672654304638,30.0,11.06,11.05,193.2822]
[1672654304827,30.0,11.06,11.05,163.2822]
[1672654305042,67.92,11.059,11.05,163.2822]
[1672654305471,67.92,11.059,11.051,30.0]
[1672654305683,67.91,11.061,11.051,30.0]
[1672654306316,20.0,11.062,11.051,30.0]
[1672654306513,67.91,11.061,11.051,30.0]
[1672654307797,20.0,11.062,11.052,659.39189998]
[1672654307987,30.0,11.06,11.052,659.39189998]
[1672654308193,67.92,11.059,11.052,659.39189998]
[1672654308636,67.91,11.061,11.053,30.0]
[1672654309682,67.91,11.061,11.051,30.0]
[1672654309891,67.91,11.061,11.05,163.2822]
[1672654310304,67.91,11.061,11.051,30.0]
[1672654311560,67.91,11.061,11.05,193.2822]
[1672654312000,67.91,11.061,11.051,30.0]
[1672654312712,30.0,11.06,11.051,48.6257]
[1672654312934,67.92,11.059,11.043,36.227543]
[1672654313239,30.0,11.058,11.043,36.227543]
[1672654313453,87.93,11.057,11.043,36.227543]
[1672654313897,30.0,11.056,11.044,30.0]
[1672654314082,87.95,11.055,11.044,30.0]
[1672654314293,30.0,11.054,11.044,30.0]
[1672654314630,6.08404471,11.054,11.052,91.06685763]
[1672654314934,75.78296939,11.056,11.046,47.03615122]
[1672654315152,117.1656,11.062,11.047,47.03615122]
[1672654315352,117.1656,11.062,11.048,48.8636]
[1672654315573,117.1656,11.062,11.05,9.2]
[1672654315882,67.86,11.069,11.051,48.8636]
[1672654316075,185.0256,11.069,11.051,167.8458]
[1672654316287,185.0256,11.069,11.052,30.0]
[1672654317148,30.0,11.068,11.052,30.0]
[1672654317338,87.87,11.067,11.052,30.0]
[1672654317778,87.87,11.067,11.051,167.8458]
[1672654317975,30.0,11.066,11.052,30.0]
[1672654318183,87.89,11.065,11.052,30.0]
[1672654318811,67.89,11.065,11.052,30.0]
[1672654319031,67.89,11.065,11.053,20.0]
[1672654319249,70.27535483,11.065,11.052,30.0]
[1672654319457,30.0,11.063,11.052,30.0]
[1672654319671,20.0,11.062,11.052,30.0]
[1672654320279,67.91,11.061,11.052,30.0]
[1672654320490,20.0,11.062,11.052,30.0]
[1672654320696,20.0,11.063,11.052,30.0]
[1672654320920,30.0,11.062,11.052,30.0]
[1672654321133,20.0,11.061,11.052,30.0]
[1672654322066,20.0,11.061,11.051,167.8458]
[1672654322283,87.91,11.061,11.051,167.8458]
[1672654322603,20.0,11.061,11.051,167.8458]
[1672654322807,20.0,11.061,11.052,30.0]
[1672654323007,20.0,11.062,11.052,30.0]
[1672654323433,20.0,11.062,11.051,167.8458]
[1672654323759,20.0,11.062,11.052,30.0]
[1672654324185,30.0,11.061,11.052,30.0]
[1672654324606,20.0,11.062,11.052,30.0]
[1672654325342,50.0,11.062,11.052,30.0]
[1672654325533,20.0,11.062,11.052,30.0]
[1672654326270,30.0,11.061,11.051,167.8458]
[1672654326706,20.0,11.062,11.051,167.8458]
[1672654326900,67.88,11.066,11.052,30.0]
[1672654327104,20.0,11.065,11.052,142.8721]
[1672654327339,67.89,11.064,11.052,142.8721]
[1672654327543,30.0,11.069,11.054,30.0]
[1672654327755,67.87,11.068,11.055,112.8721]
[1672654328068,50.0,11.067,11.051,48.8636]
[1672654328279,67.88,11.066,11.053,47.5333]
[1672654328492,20.0,11.065,11.052,54.839]
[1672654328691,97.89,11.064,11.052,54.839]
[1672654328903,20.0,11.063,11.052,54.839]
[1672654329121,67.9,11.062,11.052,54.839]
[1672654329309,20.0,11.061,11.052,54.839]
[1672654329524,20.0,11.061,11.052,24.839]
[1672654330386,20.0,11.061,11.053,30.0]
[1672654330582,20.0,11.062,11.053,30.0]
[1672654330794,20.0,11.064,11.053,30.0]
[1672654332690,87.89,11.064,11.053,30.0]
[1672654333425,87.89,11.064,11.055,30.0]
[1672654333638,20.0,11.064,11.055,30.0]
[1672654333962,50.0,11.066,11.055,30.0]
[1672654334274,67.88,11.065,11.055,30.0]
[1672654334481,20.0,11.064,11.055,30.0]
[1672654335753,20.0,11.064,11.053,30.0]
[1672654335947,97.9,11.063,11.052,24.839]
[1672654336155,20.0,11.062,11.052,24.839]
[1672654336571,67.91,11.061,11.04,46.19]
[1672654336893,67.91,11.061,11.051,30.0]
[1672654337511,128.4585,11.062,11.051,30.0]
[1672654338374,20.0,11.062,11.051,202.77596]
[1672654338563,20.0,11.064,11.051,202.77596]
[1672654338773,30.0,11.063,11.051,202.77596]
[1672654339005,20.0,11.062,11.051,202.77596]
[1672654339193,20.0,11.062,11.051,156.0702]
[1672654339640,20.0,11.062,11.052,30.0]
[1672654340790,20.0,11.062,11.051,156.0702]
[1672654341411,20.0,11.062,11.052,30.0]
[1672654342667,67.88,11.066,11.053,20.0]
[1672654342885,67.87,11.068,11.054,30.0]
[1672654343094,67.87,11.068,11.054,198.1503]
[1672654343631,30.0,11.067,11.056,30.0]
[1672654343817,30.0,11.067,11.057,119.1688]
[1672654344268,67.88,11.066,11.057,119.1688]
[1672654344661,30.0,11.065,11.051,30.0]
[1672654344875,30.0,11.063,11.051,143.8514]
[1672654345098,67.9,11.062,11.051,143.8514]
[1672654345289,67.89,11.064,11.051,143.8514]
[1672654345712,67.89,11.064,11.051,159.65870786]
[1672654346037,20.0,11.063,11.051,143.8514]
[1672654346363,20.0,11.063,11.051,208.19120786]
[1672654346765,20.0,11.064,11.051,192.3839]
[1672654346977,87.89,11.064,11.051,209.08966]
[1672654347195,30.0,11.076,11.052,15.80730786]
[1672654347196,67.88,11.066,11.052,15.80730786]
[1672654347390,30.0,11.068,11.054,30.0]
[1672654347605,67.87,11.067,11.054,30.0]
[1672654348044,30.0,11.068,11.054,30.0]
[1672654348255,67.87,11.067,11.055,114.6532]
[1672654348671,30.0,11.066,11.056,30.0]
[1672654348883,30.0,11.066,11.056,193.7588]
[1672654349407,30.0,11.066,11.056,163.7588]
[1672654349617,30.0,11.066,11.053,40.74163]
[1672654349827,67.88,11.065,11.053,24.0389]
[1672654350443,52.85740487,11.064,11.053,24.0389]
[1672654350659,67.9,11.063,11.053,24.0389]
[1672654351079,20.0,11.062,11.053,24.0389]
[1672654351919,67.89,11.065,11.053,24.0389]
[1672654351920,20.0,11.064,11.053,24.0389]